[Event "Titled Tuesday Blitz November 22 Early 2022"]
[White "Madaminov, Mukhiddin"]
[Black "Korchmar, Vasiliy"]
[WhiteFideId "14210703"]
[BlackFideId "24131750"]
[WhiteElo "2341"]
[BlackElo "2370"]
[Result "1-0"]
[Round "06"]
[TimeControl "180+1"]
[Date "2022.11.22"]
[WhiteClock "0:00:06"]
[BlackClock "0:00:02"]

1. d4 {[%clk 0:03:00]}  d5 {[%clk 0:02:58]} 2. Nc3 {[%clk 0:03:00]}  Nf6 {[%clk 0:02:57]} 3. Bf4 {[%clk 0:02:59]}  a6 {[%clk 0:02:57]} 4. e3 {[%clk 0:02:58]}  b5 {[%clk 0:02:54]} 5. Bd3 {[%clk 0:02:53]}  e6 {[%clk 0:02:48]} 6. Nf3 {[%clk 0:02:52]}  Bb7 {[%clk 0:02:46]} 7. Ne2 {[%clk 0:02:50]}  Nbd7 {[%clk 0:02:43]} 8. Ng3 {[%clk 0:02:44]}  c5 {[%clk 0:02:39]} 9. c3 {[%clk 0:02:42]}  Be7 {[%clk 0:02:40]} 10. Ne5 {[%clk 0:02:39]}  Nxe5 {[%clk 0:02:20]} 11. Bxe5 {[%clk 0:02:37]}  O-O {[%clk 0:02:18]} 12. Nh5 {[%clk 0:02:36]}  g6 {[%clk 0:02:12]} 13. Nxf6+ {[%clk 0:01:32]}  Bxf6 {[%clk 0:02:13]} 14. f4 {[%clk 0:01:32]}  Bh4+ {[%clk 0:01:38]} 15. g3 {[%clk 0:01:22]}  Be7 {[%clk 0:01:37]} 16. dxc5 {[%clk 0:01:15]}  f6 {[%clk 0:01:19]} 17. Bd4 {[%clk 0:00:54]}  Qc7 {[%clk 0:01:19]} 18. Qg4 {[%clk 0:00:52]}  e5 {[%clk 0:01:09]} 19. fxe5 {[%clk 0:00:46]}  f5 {[%clk 0:00:48]} 20. Qf4 {[%clk 0:00:43]}  Bxc5 {[%clk 0:00:49]} 21. O-O {[%clk 0:00:40]}  Rae8 {[%clk 0:00:45]} 22. h4 {[%clk 0:00:40]}  Qe7 {[%clk 0:00:22]} 23. h5 {[%clk 0:00:28]}  Rf7 {[%clk 0:00:13]} 24. hxg6 {[%clk 0:00:27]}  hxg6 {[%clk 0:00:14]} 25. Kg2 {[%clk 0:00:16]}  b4 {[%clk 0:00:04]} 26. Rh1 {[%clk 0:00:15]}  bxc3 {[%clk 0:00:04]} 27. bxc3 {[%clk 0:00:12]}  Bxd4 {[%clk 0:00:04]} 28. cxd4 {[%clk 0:00:11]}  Qa3 {[%clk 0:00:04]} 29. Be2 {[%clk 0:00:10]}  Bc6 {[%clk 0:00:03]} 30. Rh6 {[%clk 0:00:09]}  Rg7 {[%clk 0:00:03]} 31. Rah1 {[%clk 0:00:09]}  Qxa2 {[%clk 0:00:01]} 32. Qf2 {[%clk 0:00:07]}  Bb5 {[%clk 0:00:01]} 33. Bxb5 {[%clk 0:00:05]}  Qxf2+ {[%clk 0:00:02]} 34. Kxf2 {[%clk 0:00:05]}  axb5 {[%clk 0:00:02]} 35. Rc1 {[%clk 0:00:02]}  Rb8 {[%clk 0:00:02]} 36. Rc6 {[%clk 0:00:03]}  b4 {[%clk 0:00:03]} 37. Rc2 {[%clk 0:00:03]}  b3 {[%clk 0:00:03]} 38. Rb2 {[%clk 0:00:03]}  Ra7 {[%clk 0:00:01]} 39. Rxg6+ {[%clk 0:00:03]}  Kf7 {[%clk 0:00:01]} 40. Rf6+ {[%clk 0:00:04]}  Ke7 {[%clk 0:00:01]} 41. Kf3 {[%clk 0:00:05]}  Ra2 {[%clk 0:00:01]} 42. Rxa2 {[%clk 0:00:05]}  bxa2 {[%clk 0:00:02]} 43. Ra6 {[%clk 0:00:06]}  Rb2 {[%clk 0:00:03]} 44. g4 {[%clk 0:00:06]}  fxg4+ {[%clk 0:00:03]} 45. Kxg4 {[%clk 0:00:07]}  Rf2 {[%clk 0:00:03]} 46. Kg3 {[%clk 0:00:07]}  Re2 {[%clk 0:00:02]} 47. Kf3 {[%clk 0:00:07]}  Rb2 {[%clk 0:00:03]} 48. e4 {[%clk 0:00:08]}  Rb3+ {[%clk 0:00:02]} 49. Kf4 {[%clk 0:00:08]}  Rb4 {[%clk 0:00:03]} 50. Ke3 {[%clk 0:00:06]}  Rb3+ {[%clk 0:00:03]} 51. Kf4 {[%clk 0:00:06]}  Rb4 {[%clk 0:00:03]} 52. Ra7+ {[%clk 0:00:06]}  Ke8 {[%clk 0:00:03]} 53. exd5 {[%clk 0:00:03]}  Rxd4+ {[%clk 0:00:03]} 54. Kf5 {[%clk 0:00:04]}  Rxd5 {[%clk 0:00:04]} 55. Ke6 {[%clk 0:00:05]}  Rd8 {[%clk 0:00:02]} 56. Rxa2 {[%clk 0:00:05]}  Rb8 {[%clk 0:00:02]} 57. Kf6 {[%clk 0:00:06]} 1-0


[Site "https://www.chess.com"]

[Event "Titled Tuesday Blitz November 22 Early 2022"]
[White "Malka, Samuel"]
[Black "Berezin, Viktor"]
[WhiteFideId "20643675"]
[BlackFideId "14107872"]
[WhiteElo "2456"]
[BlackElo "2310"]
[Result "0-1"]
[Round "06"]
[TimeControl "180+1"]
[Date "2022.11.23"]
[WhiteClock "0:00:15"]
[BlackClock "0:01:02"]

1. d4 {[%clk 0:03:00]}  Nf6 {[%clk 0:02:59]} 2. c4 {[%clk 0:03:01]}  g6 {[%clk 0:02:59]} 3. Nc3 {[%clk 0:03:01]}  Bg7 {[%clk 0:03:00]} 4. e4 {[%clk 0:03:02]}  O-O {[%clk 0:03:00]} 5. Nf3 {[%clk 0:03:02]}  d6 {[%clk 0:03:00]} 6. Be2 {[%clk 0:03:03]}  Nc6 {[%clk 0:03:01]} 7. d5 {[%clk 0:03:01]}  Nb8 {[%clk 0:02:55]} 8. O-O {[%clk 0:02:59]}  e5 {[%clk 0:02:55]} 9. Ne1 {[%clk 0:02:52]}  Na6 {[%clk 0:02:55]} 10. Nd3 {[%clk 0:02:44]}  Nd7 {[%clk 0:02:51]} 11. b4 {[%clk 0:02:26]}  c5 {[%clk 0:02:49]} 12. a3 {[%clk 0:02:21]}  f5 {[%clk 0:02:47]} 13. f3 {[%clk 0:02:21]}  f4 {[%clk 0:02:45]} 14. Rb1 {[%clk 0:02:21]}  b6 {[%clk 0:02:45]} 15. Na4 {[%clk 0:02:18]}  Nf6 {[%clk 0:02:43]} 16. bxc5 {[%clk 0:02:17]}  Nxc5 {[%clk 0:02:41]} 17. Naxc5 {[%clk 0:02:14]}  bxc5 {[%clk 0:02:42]} 18. Bd2 {[%clk 0:02:13]}  h5 {[%clk 0:02:41]} 19. Qa4 {[%clk 0:02:10]}  Rf7 {[%clk 0:02:37]} 20. Ba5 {[%clk 0:02:06]}  Qf8 {[%clk 0:02:30]} 21. Qc6 {[%clk 0:01:57]}  Bd7 {[%clk 0:02:30]} 22. Qa6 {[%clk 0:01:58]}  Bc8 {[%clk 0:02:25]} 23. Qc6 {[%clk 0:01:55]}  Bd7 {[%clk 0:02:25]} 24. Qa6 {[%clk 0:01:56]}  Bc8 {[%clk 0:02:20]} 25. Qb5 {[%clk 0:01:56]}  Bd7 {[%clk 0:02:19]} 26. Qb3 {[%clk 0:01:43]}  g5 {[%clk 0:02:18]} 27. Nf2 {[%clk 0:01:43]}  g4 {[%clk 0:02:15]} 28. Kh1 {[%clk 0:01:44]}  Qe7 {[%clk 0:02:08]} 29. g3 {[%clk 0:01:38]}  Kh8 {[%clk 0:02:02]} 30. Rg1 {[%clk 0:01:36]}  Rg8 {[%clk 0:02:02]} 31. Rbe1 {[%clk 0:01:21]}  Bh6 {[%clk 0:01:56]} 32. gxf4 {[%clk 0:01:03]}  Bxf4 {[%clk 0:01:53]} 33. fxg4 {[%clk 0:01:03]}  hxg4 {[%clk 0:01:45]} 34. Rg2 {[%clk 0:00:44]}  Rh7 {[%clk 0:01:44]} 35. Kg1 {[%clk 0:00:39]}  Qf7 {[%clk 0:01:30]} 36. Nh1 {[%clk 0:00:39]}  Nxe4 {[%clk 0:01:27]} 37. Bd3 {[%clk 0:00:35]}  Bxh2+ {[%clk 0:01:13]} 38. Rxh2 {[%clk 0:00:26]}  Rxh2 {[%clk 0:01:12]} 39. Kxh2 {[%clk 0:00:24]}  g3+ {[%clk 0:01:12]} 40. Kg1 {[%clk 0:00:19]}  g2 {[%clk 0:01:05]} 41. Bxe4 {[%clk 0:00:16]}  gxh1=Q+ {[%clk 0:01:05]} 42. Kxh1 {[%clk 0:00:17]}  Qh5+ {[%clk 0:01:03]} 43. Qh3 {[%clk 0:00:15]}  Qxh3# {[%clk 0:01:02]} 0-1


[Site "https://www.chess.com"]

[Event "Titled Tuesday Blitz November 22 Early 2022"]
[White "Malyi, Viacheslav"]
[Black "Levitan, Caleb Levi"]
[WhiteFideId "14123983"]
[BlackFideId "14332620"]
[WhiteElo "2291"]
[BlackElo "1963"]
[Result "1-0"]
[Round "06"]
[TimeControl "180+1"]
[Date "2022.11.23"]
[WhiteClock "0:00:24"]
[BlackClock "0:00:04"]

1. e4 {[%clk 0:02:58]}  c5 {[%clk 0:02:59]} 2. Nf3 {[%clk 0:02:56]}  e6 {[%clk 0:02:58]} 3. g3 {[%clk 0:02:53]}  d5 {[%clk 0:02:51]} 4. e5 {[%clk 0:02:52]}  Nc6 {[%clk 0:02:50]} 5. Bg2 {[%clk 0:02:53]}  Nge7 {[%clk 0:02:49]} 6. O-O {[%clk 0:02:53]}  Nf5 {[%clk 0:02:46]} 7. Re1 {[%clk 0:02:53]}  Be7 {[%clk 0:02:46]} 8. h4 {[%clk 0:02:54]}  O-O {[%clk 0:02:44]} 9. h5 {[%clk 0:02:53]}  b6 {[%clk 0:02:39]} 10. d3 {[%clk 0:02:53]}  Bb7 {[%clk 0:02:38]} 11. Bf4 {[%clk 0:02:54]}  Nfd4 {[%clk 0:02:23]} 12. Nbd2 {[%clk 0:02:50]}  Rc8 {[%clk 0:02:13]} 13. c3 {[%clk 0:02:49]}  Nxf3+ {[%clk 0:02:13]} 14. Nxf3 {[%clk 0:02:50]}  d4 {[%clk 0:02:00]} 15. c4 {[%clk 0:02:46]}  Qd7 {[%clk 0:01:43]} 16. Qd2 {[%clk 0:02:40]}  f6 {[%clk 0:01:35]} 17. exf6 {[%clk 0:02:32]}  Bxf6 {[%clk 0:01:34]} 18. Re2 {[%clk 0:02:24]}  Rce8 {[%clk 0:01:30]} 19. Rae1 {[%clk 0:02:23]}  Qf7 {[%clk 0:01:19]} 20. h6 {[%clk 0:02:22]}  g6 {[%clk 0:01:10]} 21. Ne5 {[%clk 0:02:13]}  Bxe5 {[%clk 0:00:55]} 22. Bxe5 {[%clk 0:02:14]}  Nxe5 {[%clk 0:00:54]} 23. Rxe5 {[%clk 0:02:15]}  Bxg2 {[%clk 0:00:52]} 24. Kxg2 {[%clk 0:02:16]}  Qf3+ {[%clk 0:00:50]} 25. Kg1 {[%clk 0:02:15]}  Rf6 {[%clk 0:00:29]} 26. R1e4 {[%clk 0:02:04]}  Ref8 {[%clk 0:00:12]} 27. Re2 {[%clk 0:01:45]}  Qg4 {[%clk 0:00:11]} 28. Qg5 {[%clk 0:01:32]}  Qxg5 {[%clk 0:00:07]} 29. Rxg5 {[%clk 0:01:32]}  Kf7 {[%clk 0:00:07]} 30. Rge5 {[%clk 0:01:22]}  Ke7 {[%clk 0:00:08]} 31. f4 {[%clk 0:01:20]}  Kd6 {[%clk 0:00:08]} 32. Kg2 {[%clk 0:01:19]}  Re8 {[%clk 0:00:07]} 33. R2e4 {[%clk 0:01:19]}  Rf5 {[%clk 0:00:07]} 34. Kf3 {[%clk 0:01:19]}  Rxe5 {[%clk 0:00:07]} 35. Rxe5 {[%clk 0:01:18]}  Rf8 {[%clk 0:00:08]} 36. g4 {[%clk 0:01:16]}  Rf7 {[%clk 0:00:07]} 37. Ke4 {[%clk 0:01:14]}  a6 {[%clk 0:00:07]} 38. a3 {[%clk 0:01:11]}  b5 {[%clk 0:00:06]} 39. b3 {[%clk 0:01:01]}  bxc4 {[%clk 0:00:05]} 40. bxc4 {[%clk 0:01:02]}  Rf8 {[%clk 0:00:05]} 41. f5 {[%clk 0:00:57]}  gxf5+ {[%clk 0:00:05]} 42. gxf5 {[%clk 0:00:58]}  exf5+ {[%clk 0:00:05]} 43. Rxf5 {[%clk 0:00:59]}  Re8+ {[%clk 0:00:04]} 44. Kf4 {[%clk 0:00:52]}  Re3 {[%clk 0:00:03]} 45. Rf6+ {[%clk 0:00:48]}  Ke7 {[%clk 0:00:03]} 46. Rxa6 {[%clk 0:00:42]}  Rxd3 {[%clk 0:00:04]} 47. Ke5 {[%clk 0:00:42]}  Rh3 {[%clk 0:00:03]} 48. Ra7+ {[%clk 0:00:37]}  Kf8 {[%clk 0:00:04]} 49. Rxh7 {[%clk 0:00:35]}  d3 {[%clk 0:00:04]} 50. Rd7 {[%clk 0:00:34]}  d2 {[%clk 0:00:02]} 51. Rxd2 {[%clk 0:00:31]}  Rxh6 {[%clk 0:00:03]} 52. Kd5 {[%clk 0:00:30]}  Ra6 {[%clk 0:00:02]} 53. Kxc5 {[%clk 0:00:25]}  Rxa3 {[%clk 0:00:02]} 54. Re2 {[%clk 0:00:25]}  Ra6 {[%clk 0:00:02]} 55. Kb5 {[%clk 0:00:24]}  Ra1 {[%clk 0:00:02]} 56. c5 {[%clk 0:00:24]}  Rb1+ {[%clk 0:00:02]} 57. Kc6 {[%clk 0:00:25]}  Rc1 {[%clk 0:00:02]} 58. Kd6 {[%clk 0:00:23]}  Rd1+ {[%clk 0:00:02]} 59. Kc7 {[%clk 0:00:24]}  Rc1 {[%clk 0:00:03]} 60. c6 {[%clk 0:00:24]}  Rb1 {[%clk 0:00:02]} 61. Kd7 {[%clk 0:00:24]}  Rd1+ {[%clk 0:00:01]} 62. Kc8 {[%clk 0:00:24]}  Rc1 {[%clk 0:00:02]} 63. c7 {[%clk 0:00:24]}  Kf7 {[%clk 0:00:02]} 64. Rb2 {[%clk 0:00:23]}  Rc3 {[%clk 0:00:02]} 65. Kb8 {[%clk 0:00:23]}  Ke7 {[%clk 0:00:03]} 66. c8=Q {[%clk 0:00:23]}  Rxc8+ {[%clk 0:00:02]} 67. Kxc8 {[%clk 0:00:24]}  Kd6 {[%clk 0:00:03]} 68. Rb7 {[%clk 0:00:23]}  Ke5 {[%clk 0:00:04]} 69. Rc7 {[%clk 0:00:24]} 1-0


[Site "https://www.chess.com"]

[Event "Titled Tuesday Blitz November 22 Early 2022"]
[White "Nanditha, V"]
[Black "Donskov, Anatoly"]
[WhiteFideId "46626697"]
[BlackFideId "24143413"]
[WhiteElo "1564"]
[BlackElo "2219"]
[Result "1-0"]
[Round "06"]
[TimeControl "180+1"]
[Date "2022.11.23"]
[WhiteClock "0:00:09"]
[BlackClock "0:00:01"]

1. e4 {[%clk 0:02:52]}  c5 {[%clk 0:02:59]} 2. Nf3 {[%clk 0:02:51]}  e6 {[%clk 0:03:00]} 3. g3 {[%clk 0:02:51]}  Nc6 {[%clk 0:02:57]} 4. Bg2 {[%clk 0:02:51]}  d6 {[%clk 0:02:58]} 5. O-O {[%clk 0:02:51]}  Nf6 {[%clk 0:02:58]} 6. d3 {[%clk 0:02:51]}  g6 {[%clk 0:02:55]} 7. c3 {[%clk 0:02:51]}  Bg7 {[%clk 0:02:54]} 8. Nbd2 {[%clk 0:02:49]}  O-O {[%clk 0:02:54]} 9. Qe2 {[%clk 0:02:50]}  Rb8 {[%clk 0:02:53]} 10. Rd1 {[%clk 0:02:50]}  e5 {[%clk 0:02:49]} 11. a4 {[%clk 0:02:47]}  h6 {[%clk 0:02:48]} 12. Nc4 {[%clk 0:02:46]}  Be6 {[%clk 0:02:46]} 13. Ne3 {[%clk 0:02:32]}  Qe7 {[%clk 0:02:37]} 14. Nd2 {[%clk 0:02:07]}  Nd7 {[%clk 0:02:22]} 15. Nd5 {[%clk 0:02:00]}  Qd8 {[%clk 0:02:13]} 16. Nc4 {[%clk 0:01:55]}  Nb6 {[%clk 0:01:58]} 17. Nce3 {[%clk 0:01:43]}  Kh7 {[%clk 0:01:51]} 18. a5 {[%clk 0:01:31]}  Nc8 {[%clk 0:01:50]} 19. Nc4 {[%clk 0:01:29]}  N8e7 {[%clk 0:01:46]} 20. h4 {[%clk 0:01:16]}  Qd7 {[%clk 0:01:32]} 21. Rf1 {[%clk 0:01:00]}  f5 {[%clk 0:01:27]} 22. f4 {[%clk 0:00:58]}  fxe4 {[%clk 0:01:20]} 23. dxe4 {[%clk 0:00:56]}  Bg4 {[%clk 0:01:15]} 24. Qd3 {[%clk 0:00:48]}  Rbd8 {[%clk 0:00:49]} 25. Be3 {[%clk 0:00:42]}  exf4 {[%clk 0:00:33]} 26. gxf4 {[%clk 0:00:37]}  Nxd5 {[%clk 0:00:30]} 27. Qxd5 {[%clk 0:00:23]}  Be6 {[%clk 0:00:30]} 28. Qd3 {[%clk 0:00:22]}  Qe7 {[%clk 0:00:20]} 29. Rad1 {[%clk 0:00:20]}  Qxh4 {[%clk 0:00:20]} 30. Nxd6 {[%clk 0:00:17]}  Bg4 {[%clk 0:00:18]} 31. Rd2 {[%clk 0:00:17]}  b6 {[%clk 0:00:15]} 32. e5 {[%clk 0:00:18]}  Ne7 {[%clk 0:00:14]} 33. Bf2 {[%clk 0:00:18]}  Qh5 {[%clk 0:00:13]} 34. Bg3 {[%clk 0:00:18]}  Nf5 {[%clk 0:00:13]} 35. axb6 {[%clk 0:00:16]}  axb6 {[%clk 0:00:12]} 36. Rff2 {[%clk 0:00:15]}  Nxd6 {[%clk 0:00:09]} 37. exd6 {[%clk 0:00:15]}  Rd7 {[%clk 0:00:10]} 38. Bc6 {[%clk 0:00:14]}  Rdf7 {[%clk 0:00:10]} 39. Be4 {[%clk 0:00:14]}  Kh8 {[%clk 0:00:09]} 40. Rh2 {[%clk 0:00:14]}  Bh3 {[%clk 0:00:08]} 41. Bxg6 {[%clk 0:00:14]}  Qg4 {[%clk 0:00:09]} 42. Rxh3 {[%clk 0:00:13]}  Qxh3 {[%clk 0:00:08]} 43. Bxf7 {[%clk 0:00:13]}  Rxf7 {[%clk 0:00:08]} 44. d7 {[%clk 0:00:14]}  Rxd7 {[%clk 0:00:09]} 45. Qxd7 {[%clk 0:00:14]}  Qxg3+ {[%clk 0:00:09]} 46. Kf1 {[%clk 0:00:15]}  Qxf4+ {[%clk 0:00:09]} 47. Rf2 {[%clk 0:00:14]}  Qc1+ {[%clk 0:00:09]} 48. Kg2 {[%clk 0:00:14]}  Qg5+ {[%clk 0:00:09]} 49. Kf3 {[%clk 0:00:14]}  Qh5+ {[%clk 0:00:09]} 50. Ke3 {[%clk 0:00:14]}  Qg5+ {[%clk 0:00:08]} 51. Kd3 {[%clk 0:00:14]}  Qg3+ {[%clk 0:00:08]} 52. Ke2 {[%clk 0:00:13]}  Qe5+ {[%clk 0:00:08]} 53. Kd1 {[%clk 0:00:13]}  Qe3 {[%clk 0:00:04]} 54. Qd8+ {[%clk 0:00:12]}  Kh7 {[%clk 0:00:04]} 55. Qd2 {[%clk 0:00:11]}  Qe6 {[%clk 0:00:03]} 56. Qc2+ {[%clk 0:00:10]}  Kh8 {[%clk 0:00:03]} 57. Re2 {[%clk 0:00:11]}  Qg4 {[%clk 0:00:03]} 58. Qd2 {[%clk 0:00:10]}  Qg1+ {[%clk 0:00:03]} 59. Kc2 {[%clk 0:00:10]}  Qg6+ {[%clk 0:00:03]} 60. Qd3 {[%clk 0:00:11]}  Qf6 {[%clk 0:00:03]} 61. Re8+ {[%clk 0:00:11]}  Bf8 {[%clk 0:00:04]} 62. Qe2 {[%clk 0:00:08]}  Kg7 {[%clk 0:00:03]} 63. Qg2+ {[%clk 0:00:08]}  Kf7 {[%clk 0:00:03]} 64. Qe4 {[%clk 0:00:09]}  Qf2+ {[%clk 0:00:02]} 65. Kb3 {[%clk 0:00:09]}  Qf6 {[%clk 0:00:02]} 66. Rc8 {[%clk 0:00:09]}  Be7 {[%clk 0:00:01]} 67. Rc7 {[%clk 0:00:09]} 1-0


[Site "https://www.chess.com"]

[Event "Titled Tuesday Blitz November 22 Early 2022"]
[White "Nguyen Hong Nhung"]
[Black "Rottenwohrer Suarez, Juan"]
[WhiteFideId "12412201"]
[BlackFideId "32068182"]
[WhiteElo "1904"]
[BlackElo "2195"]
[Result "1-0"]
[Round "06"]
[TimeControl "180+1"]
[Date "2022.11.23"]
[WhiteClock "0:00:17"]
[BlackClock "0:00:06"]

1. e4 {[%clk 0:03:00]}  c5 {[%clk 0:02:59]} 2. Nc3 {[%clk 0:02:59]}  g6 {[%clk 0:02:59]} 3. f4 {[%clk 0:02:58]}  Bg7 {[%clk 0:02:59]} 4. Nf3 {[%clk 0:02:59]}  Nc6 {[%clk 0:03:00]} 5. Bc4 {[%clk 0:02:59]}  e6 {[%clk 0:03:00]} 6. d3 {[%clk 0:03:00]}  Nge7 {[%clk 0:03:00]} 7. O-O {[%clk 0:03:01]}  d5 {[%clk 0:03:01]} 8. Bb3 {[%clk 0:03:01]}  O-O {[%clk 0:03:00]} 9. Qe1 {[%clk 0:03:01]}  Nd4 {[%clk 0:02:47]} 10. Nxd4 {[%clk 0:03:01]}  cxd4 {[%clk 0:02:45]} 11. Ne2 {[%clk 0:03:01]}  dxe4 {[%clk 0:02:44]} 12. dxe4 {[%clk 0:03:02]}  d3 {[%clk 0:02:44]} 13. Nc3 {[%clk 0:03:02]}  dxc2 {[%clk 0:02:41]} 14. Qf2 {[%clk 0:03:02]}  Nc6 {[%clk 0:02:34]} 15. Bxc2 {[%clk 0:02:50]}  b6 {[%clk 0:02:19]} 16. Be3 {[%clk 0:02:47]}  Bb7 {[%clk 0:02:19]} 17. Rad1 {[%clk 0:02:46]}  Qe7 {[%clk 0:02:19]} 18. e5 {[%clk 0:02:45]}  Nb4 {[%clk 0:02:17]} 19. Be4 {[%clk 0:02:40]}  Rac8 {[%clk 0:02:16]} 20. Bxb7 {[%clk 0:02:36]}  Qxb7 {[%clk 0:02:15]} 21. a3 {[%clk 0:02:36]}  Na6 {[%clk 0:02:10]} 22. Nb5 {[%clk 0:02:28]}  Rcd8 {[%clk 0:01:44]} 23. Qh4 {[%clk 0:02:18]}  Rd7 {[%clk 0:01:37]} 24. Nd6 {[%clk 0:02:11]}  Qa8 {[%clk 0:01:27]} 25. Rf3 {[%clk 0:01:56]}  Nc7 {[%clk 0:01:20]} 26. Rh3 {[%clk 0:01:53]}  h6 {[%clk 0:01:15]} 27. f5 {[%clk 0:01:37]}  exf5 {[%clk 0:00:57]} 28. Bxh6 {[%clk 0:01:34]}  Bxe5 {[%clk 0:00:58]} 29. Bxf8 {[%clk 0:01:32]}  Kxf8 {[%clk 0:00:59]} 30. Re1 {[%clk 0:01:04]}  Qd5 {[%clk 0:00:38]} 31. Nc8 {[%clk 0:00:37]}  Qd4+ {[%clk 0:00:29]} 32. Qxd4 {[%clk 0:00:35]}  Bxd4+ {[%clk 0:00:30]} 33. Kf1 {[%clk 0:00:35]}  Bxb2 {[%clk 0:00:25]} 34. Nxa7 {[%clk 0:00:34]}  Ne6 {[%clk 0:00:19]} 35. Nc6 {[%clk 0:00:31]}  Rd2 {[%clk 0:00:17]} 36. Rb3 {[%clk 0:00:24]}  Nf4 {[%clk 0:00:10]} 37. g3 {[%clk 0:00:16]}  Nh3 {[%clk 0:00:09]} 38. Re2 {[%clk 0:00:16]}  Rd1+ {[%clk 0:00:05]} 39. Kg2 {[%clk 0:00:16]}  Ng5 {[%clk 0:00:06]} 40. Rbxb2 {[%clk 0:00:17]} 1-0


[Site "https://www.chess.com"]

[Event "Titled Tuesday Blitz November 22 Early 2022"]
[White "Nissinen, Niilo Man"]
[Black "Muminova, Nafisa"]
[WhiteFideId "30950767"]
[BlackFideId "14201526"]
[WhiteElo "1896"]
[BlackElo "2258"]
[Result "0-1"]
[Round "06"]
[TimeControl "180+1"]
[Date "2022.11.23"]
[WhiteClock "0:00:02"]
[BlackClock "0:00:50"]

1. e4 {[%clk 0:03:00]}  e6 {[%clk 0:02:59]} 2. d4 {[%clk 0:03:00]}  d5 {[%clk 0:02:59]} 3. e5 {[%clk 0:03:01]}  c5 {[%clk 0:02:59]} 4. c3 {[%clk 0:03:02]}  Nc6 {[%clk 0:02:59]} 5. Nf3 {[%clk 0:03:01]}  Qb6 {[%clk 0:03:00]} 6. a3 {[%clk 0:03:00]}  f6 {[%clk 0:02:59]} 7. b4 {[%clk 0:02:49]}  fxe5 {[%clk 0:02:57]} 8. dxc5 {[%clk 0:02:32]}  Qc7 {[%clk 0:02:53]} 9. c4 {[%clk 0:02:27]}  Nf6 {[%clk 0:02:49]} 10. Nc3 {[%clk 0:02:01]}  d4 {[%clk 0:02:37]} 11. Nb5 {[%clk 0:01:59]}  Qb8 {[%clk 0:02:35]} 12. Bg5 {[%clk 0:01:36]}  a6 {[%clk 0:02:33]} 13. Bxf6 {[%clk 0:01:35]}  gxf6 {[%clk 0:02:33]} 14. Nd6+ {[%clk 0:01:18]}  Bxd6 {[%clk 0:02:32]} 15. cxd6 {[%clk 0:01:18]}  Qxd6 {[%clk 0:02:32]} 16. Nd2 {[%clk 0:01:19]}  f5 {[%clk 0:02:11]} 17. Qh5+ {[%clk 0:01:18]}  Kd8 {[%clk 0:02:11]} 18. c5 {[%clk 0:01:10]}  Qe7 {[%clk 0:02:04]} 19. Nc4 {[%clk 0:01:08]}  Kc7 {[%clk 0:02:00]} 20. O-O-O {[%clk 0:00:51]}  Bd7 {[%clk 0:01:55]} 21. g3 {[%clk 0:00:48]}  e4 {[%clk 0:01:51]} 22. Qh6 {[%clk 0:00:37]}  Raf8 {[%clk 0:01:39]} 23. Qf4+ {[%clk 0:00:33]}  e5 {[%clk 0:01:39]} 24. Qh6 {[%clk 0:00:28]}  Be6 {[%clk 0:01:37]} 25. Nb6 {[%clk 0:00:22]}  Rf6 {[%clk 0:01:21]} 26. Qh5 {[%clk 0:00:18]}  Bf7 {[%clk 0:01:18]} 27. Qe2 {[%clk 0:00:17]}  Rd8 {[%clk 0:01:13]} 28. Qb2 {[%clk 0:00:13]}  d3 {[%clk 0:01:11]} 29. Bg2 {[%clk 0:00:10]}  Nd4 {[%clk 0:01:10]} 30. Rhe1 {[%clk 0:00:06]}  Bb3 {[%clk 0:00:53]} 31. Rd2 {[%clk 0:00:05]}  Bc2 {[%clk 0:00:51]} 32. Re3 {[%clk 0:00:02]}  Nb3+ {[%clk 0:00:50]} 0-1


[Site "https://www.chess.com"]